fUST/lending_fUST_20250328
["ID","MTS","AMOUNT","RATE_DAILY","PERIOD"]
[356764621,1743137456553,-500.0,0.0003589,17]
[356764623,1743137456564,-500.0,0.0003589,17]
[356764625,1743137456574,-1344.72,0.0003589,17]
[356764627,1743137456583,-1669.9,0.0003589,17]
[356764630,1743137456596,-2131.53,0.0003589,17]
[356764631,1743137456606,-500.0,0.0003589,17]
[356764633,1743137456617,-1261.24,0.0003589,17]
[356764635,1743137456627,-500.0,0.0003589,17]
[356764637,1743137456636,-544.72075133,0.0003589,17]
[356764639,1743137456646,-885.94,0.0003589,17]
[356764641,1743137456655,-939.68,0.0003589,17]
[356764643,1743137456665,-500.0,0.0003589,17]
[356764645,1743137456674,-2457.33,0.0003589,17]
[356764647,1743137456684,-2939.82,0.0003589,17]
[356764649,1743137456694,-969.1,0.0003589,17]
[356764651,1743137456703,-500.0,0.0003589,17]
[356764653,1743137456712,-1351.86,0.0003589,17]
[356764655,1743137456722,-500.0,0.0003589,17]
[356764657,1743137456732,-500.0,0.0003589,17]
[356764659,1743137456741,-1260.2,0.0003589,17]
[356764661,1743137456753,-500.0,0.0003589,17]
[356764664,1743137456762,-500.0,0.0003589,17]
[356764666,1743137456772,-2547.77,0.0003589,17]
[356764668,1743137456782,-1339.61,0.0003589,17]
[356764670,1743137456791,-500.0,0.0003589,17]
[356764672,1743137456800,-500.0,0.0003589,17]
[356764674,1743137456810,-500.0,0.0003589,17]
[356764676,1743137456820,-6878.21,0.0003589,17]
[356764678,1743137456829,-1381.65,0.0003589,17]
[356764680,1743137456838,-500.0,0.0003589,7]
[356764682,1743137456848,-3407.44,0.0003589,17]
[356764684,1743137456857,-500.0,0.0003589,17]
[356764686,1743137456868,-7718.17,0.0003589,17]
[356764688,1743137456879,-500.0,0.0003589,17]
[356764690,1743137456889,-500.0,0.0003589,17]
[356764692,1743137456898,-1608.51,0.0003589,17]
[356764694,1743137456908,-570.43960705,0.0003589,17]
[356764696,1743137456919,-500.0,0.0003589,17]
[356764698,1743137456929,-420.11998971,0.0003589,17]
[356764700,1743137456938,-1034.01,0.0003589,17]
[356764701,1743137456948,-500.0,0.0003589,17]
[356764704,1743137456958,-620.34,0.0003589,17]
[356764706,1743137456969,-500.0,0.0003589,17]
[356764708,1743137456978,-329.73519058,0.0003589,17]
[356764710,1743137456988,-500.0,0.0003589,17]
[356764712,1743137456997,-500.0,0.0003589,17]
[356764714,1743137457008,-4204.69,0.0003589,17]
[356764737,1743137457222,-28305.58,0.0003589,17]
[356764739,1743137457232,-724.03,0.0003589,17]
[356764741,1743137457241,-500.0,0.0003589,17]
[356764743,1743137457251,-11619.2,0.0003589,17]
[356764745,1743137457260,-558.74,0.0003589,17]
[356764747,1743137457269,-500.0,0.0003589,17]
[356764749,1743137457279,-500.0,0.0003589,17]
[356764751,1743137457288,-500.0,0.0003589,17]
[356764753,1743137457298,-500.0,0.0003589,17]
[356764755,1743137457308,-3479.14,0.0003589,17]
[356764757,1743137457318,-500.0,0.0003589,17]
[356764759,1743137457327,-500.0,0.0003589,17]
[356764761,1743137457337,-5579.42,0.0003589,17]
[356764763,1743137457346,-500.0,0.0003589,17]
[356764765,1743137457355,-500.0,0.0003589,17]
[356764766,1743137457368,-540.86446373,0.0003589,17]
[356764768,1743137457377,-3804.9,0.0003589,17]
[356764770,1743137457387,-500.0,0.0003589,17]
[356764772,1743137457396,-447.41361228,0.0003589,17]
[356764774,1743137457406,-500.0,0.0003589,17]
[356764777,1743137457415,-532.55206823,0.0003589,17]
[356764779,1743137457426,-500.0,0.0003589,17]
[356764781,1743137457435,-1291.03,0.0003589,17]
[356764783,1743137457444,-500.0,0.0003589,17]
[356764785,1743137457454,-500.0,0.0003589,17]
[356764787,1743137457463,-4985.68,0.0003589,17]
[356764788,1743137457472,-500.0,0.0003589,17]
[356764790,1743137457481,-500.0,0.0003589,17]
[356764793,1743137457491,-7067.85,0.0003589,17]
[356764794,1743137457500,-1837.23,0.0003589,17]
[356764795,1743137457510,-500.0,0.0003589,17]
[356764796,1743137457520,-500.0,0.0003589,17]
[356764798,1743137457529,-500.0,0.0003589,17]
[356764800,1743137457538,-500.0,0.0003589,17]
[356764802,1743137457548,-500.0,0.0003589,17]
[356764804,1743137457558,-425.90113106,0.0003589,17]
[356764806,1743137457567,-500.0,0.0003589,17]
[356764808,1743137457577,-981.77,0.0003589,17]
[356764810,1743137457586,-3454.3590222,0.0003589,17]
[356764835,1743137457809,-800.0,0.0003589,17]
[356764868,1743137458134,-13311.4009778,0.0003589,17]
[356764870,1743137458144,-203.27148998,0.000359,12]
[356764872,1743137458154,-157.676079,0.00036,17]
[356764874,1743137458164,-237.45586337,0.00036025,2]
[356764876,1743137458174,-203.27148998,0.000361,13]
[356764878,1743137458184,-151.0,0.00036142,2]
[356764881,1743137458194,-158264.9719823,0.00036163,18]
[356764883,1743137458204,-500.0,0.00036164,17]
[356764885,1743137458214,-1664.16,0.00036164,17]
[356764887,1743137458224,-500.0,0.00036164,17]
[356764889,1743137458234,-525.32168814,0.00036164,17]
[356764891,1743137458248,-500.0,0.00036164,17]
[356764893,1743137458258,-500.0,0.00036164,17]
[356764895,1743137458268,-500.0,0.00036164,17]
[356764897,1743137458278,-500.0,0.00036164,17]
[356764899,1743137458288,-521.92971696,0.00036164,17]
[356764901,1743137458297,-500.0,0.00036164,17]
[356764904,1743137458307,-500.0,0.00036164,17]
[356764906,1743137458317,-508.7769489,0.00036164,17]
[356764908,1743137458327,-534.97905892,0.00036164,17]
[356764910,1743137458337,-529.82488773,0.00036164,17]
[356764912,1743137458347,-500.0,0.00036164,17]
[356764913,1743137458357,-500.0,0.00036164,17]
[356764915,1743137458368,-500.0,0.00036164,17]
[356764917,1743137458378,-500.0,0.00036164,17]
[356764919,1743137458387,-657.71,0.00036164,17]
[356764921,1743137458397,-500.0,0.00036164,17]
[356764923,1743137458406,-500.0,0.00036164,17]
[356764925,1743137458416,-544.59742288,0.00036164,17]
[356764927,1743137458425,-507.81600274,0.00036164,17]
[356764929,1743137458435,-544.97498135,0.00036164,2]
[356764932,1743137458444,-233.6024727,0.00036164,17]
[356764934,1743137458454,-1113.4,0.00036164,17]
[356764936,1743137458464,-530.28642971,0.00036164,17]
[356764938,1743137458473,-569.38,0.00036164,17]
[356764940,1743137458486,-500.0,0.00036164,17]
[356764942,1743137458496,-612.27,0.00036164,17]
[356764944,1743137458505,-500.0,0.00036164,17]
[356764946,1743137458515,-620.83193708,0.00036164,17]
[356764948,1743137458524,-500.0,0.00036164,17]
[356764950,1743137458534,-500.0,0.00036164,17]
[356764952,1743137458543,-500.0,0.00036164,17]
[356764954,1743137458553,-500.0,0.00036164,17]
[356764956,1743137458563,-522.81957874,0.00036164,17]
[356764958,1743137458572,-761.65,0.00036164,17]
[356764960,1743137458582,-500.0,0.00036164,17]
[356764962,1743137458592,-1388.08,0.00036164,17]
[356764964,1743137458603,-500.0,0.00036164,17]
[356764966,1743137458613,-500.0,0.00036164,17]
[356764969,1743137458627,-500.0,0.00036164,17]
[356764971,1743137458636,-240.46572966,0.00036164,17]
[356764973,1743137458645,-500.0,0.00036164,17]
[356764975,1743137458655,-500.0,0.00036164,17]
[356764977,1743137458664,-500.0,0.00036164,17]
[356764979,1743137458673,-500.0,0.00036164,17]
[356764981,1743137458683,-1235.08,0.00036164,17]
[356764983,1743137458692,-1361.15,0.00036164,17]
[356764984,1743137458702,-500.0,0.00036164,17]
[356764986,1743137458711,-500.0,0.00036164,17]
[356764988,1743137458720,-500.0,0.00036164,17]
[356764990,1743137458730,-1308.3,0.00036164,17]
[356764992,1743137458739,-500.0,0.00036164,17]
[356764994,1743137458749,-500.0,0.00036164,17]
[356764996,1743137458759,-477.37035899,0.00036164,17]
[356764998,1743137458768,-168.01771298,0.00036164,17]
[356765000,1743137458778,-500.0,0.00036164,17]
[356765002,1743137458788,-500.0,0.00036164,17]
[356765005,1743137458799,-500.0,0.00036164,17]
[356765007,1743137458809,-449.57651495,0.00036164,17]
[356765008,1743137458819,-500.0,0.00036164,17]
[356765010,1743137458829,-500.0,0.00036164,17]
[356765012,1743137458839,-500.0,0.00036164,17]
[356765015,1743137458849,-502.63229403,0.00036164,17]
[356765016,1743137458860,-364.78320232,0.00036164,17]
[356765019,1743137458875,-500.0,0.00036164,17]
[356765020,1743137458887,-500.0,0.00036164,17]
[356765022,1743137458897,-500.0,0.00036164,17]
[356765024,1743137458907,-500.0,0.00036164,17]
[356765026,1743137458916,-1360.67,0.00036164,17]
[356765028,1743137458926,-500.0,0.00036164,17]
[356765030,1743137458935,-602.0,0.00036164,17]
[356765032,1743137458947,-500.0,0.00036164,17]
[356765034,1743137458959,-500.0,0.00036164,17]
[356765036,1743137458970,-500.0,0.00036164,17]
[356765038,1743137458979,-500.0,0.00036164,17]
[356765040,1743137458989,-500.0,0.00036164,17]
[356765042,1743137458999,-583.82,0.00036164,17]
[356765044,1743137459008,-500.0,0.00036164,17]
[356765046,1743137459019,-1324.76,0.00036164,17]
[356765049,1743137459029,-500.0,0.00036164,17]
[356765051,1743137459038,-500.0,0.00036164,17]
[356765052,1743137459048,-500.0,0.00036164,17]
[356765054,1743137459057,-500.0,0.00036164,17]
[356765056,1743137459067,-500.0,0.00036164,17]
[356765058,1743137459077,-500.0,0.00036164,17]
[356765060,1743137459087,-500.0,0.00036164,17]
[356765062,1743137459096,-1032.3,0.00036164,17]
[356765064,1743137459107,-500.0,0.00036164,17]
[356765067,1743137459119,-500.0,0.00036164,17]
[356765069,1743137459129,-500.0,0.00036164,17]
[356765071,1743137459138,-500.0,0.00036164,17]
[356765073,1743137459147,-500.0,0.00036164,17]
[356765075,1743137459157,-947.49,0.00036164,2]
[356765076,1743137459167,-538.55901937,0.00036164,17]
[356765079,1743137459176,-599.1,0.00036164,17]
[356765080,1743137459185,-500.0,0.00036164,17]
[356765082,1743137459195,-512.66,0.00036164,17]
[356765085,1743137459205,-500.0,0.00036164,17]
[356765086,1743137459215,-500.0,0.00036164,17]
[356765089,1743137459225,-1338.92,0.00036164,17]
[356765090,1743137459234,-500.0,0.00036164,17]
[356765093,1743137459244,-500.0,0.00036164,17]
[356765095,1743137459254,-500.0,0.00036164,17]
[356765097,1743137459264,-500.0,0.00036164,17]
[356765098,1743137459273,-500.0,0.00036164,17]
[356765101,1743137459283,-500.0,0.00036164,17]
[356765103,1743137459292,-500.0,0.00036164,17]
[356765105,1743137459302,-641.85,0.00036164,17]
[356765107,1743137459311,-500.0,0.00036164,17]
[356765109,1743137459320,-500.0,0.00036164,17]
[356765111,1743137459329,-500.0,0.00036164,17]
[356765113,1743137459339,-158.56877859,0.00036164,17]
[356765115,1743137459348,-1165.07,0.00036164,17]
[356765117,1743137459358,-1077.29,0.00036164,17]
[356765119,1743137459371,-545.35006906,0.00036164,17]
[356765121,1743137459380,-500.0,0.00036164,17]
[356765123,1743137459390,-800.08,0.00036164,17]
[356765125,1743137459399,-2132.21,0.00036164,17]
[356765127,1743137459408,-500.0,0.00036164,17]
[356765129,1743137459418,-1752.53,0.00036164,17]
[356765131,1743137459428,-540.50894998,0.00036164,17]
[356765133,1743137459437,-255.97269917,0.00036164,17]
[356765135,1743137459447,-500.0,0.00036164,17]
[356765137,1743137459456,-500.0,0.00036164,17]
[356765139,1743137459465,-505.88,0.00036164,17]
[356765141,1743137459475,-500.0,0.00036164,17]
[356765143,1743137459485,-500.0,0.00036164,17]
[356765144,1743137459494,-500.0,0.00036164,7]
[356765146,1743137459504,-743.09,0.00036164,17]
[356765148,1743137459513,-754.09,0.00036164,17]
[356765150,1743137459522,-500.0,0.00036164,17]
[356765152,1743137459532,-500.0,0.00036164,17]
[356765154,1743137459541,-500.0,0.00036164,17]
[356765156,1743137459550,-500.0,0.00036164,17]
[356765158,1743137459559,-1958.08,0.00036164,17]
[356765160,1743137459569,-699.87,0.00036164,17]
[356765162,1743137459578,-1579.14,0.00036164,17]
[356765164,1743137459588,-500.0,0.00036164,17]
[356765166,1743137459598,-500.0,0.00036164,17]
[356765168,1743137459608,-525.89,0.00036164,17]
[356765170,1743137459619,-500.0,0.00036164,17]
[356765172,1743137459629,-500.0,0.00036164,17]
[356765174,1743137459639,-712.75,0.00036164,17]
[356765176,1743137459648,-500.0,0.00036164,17]
[356765178,1743137459657,-500.0,0.00036164,17]
[356765180,1743137459667,-500.0,0.00036164,17]
[356765182,1743137459676,-500.0,0.00036164,17]
[356765184,1743137459685,-500.0,0.00036164,17]
[356765186,1743137459695,-648.5,0.00036164,17]
[356765188,1743137459705,-500.0,0.00036164,17]
[356765190,1743137459714,-500.0,0.00036164,17]
[356765192,1743137459723,-384.55695363,0.00036164,17]
[356765194,1743137459733,-889.02,0.00036164,17]
[356765196,1743137459743,-500.0,0.00036164,17]
[356765198,1743137459753,-500.0,0.00036164,17]
[356765200,1743137459762,-680.5,0.00036164,17]
[356765202,1743137459772,-500.0,0.00036164,17]
[356765204,1743137459782,-579.81,0.00036164,17]
[356765206,1743137459791,-500.0,0.00036164,17]
[356765208,1743137459801,-500.0,0.00036164,17]
[356765210,1743137459811,-500.0,0.00036164,17]
[356765212,1743137459820,-500.0,0.00036164,17]
[356765214,1743137459829,-176.75216589,0.00036164,17]
[356765216,1743137459839,-500.0,0.00036164,17]
[356765218,1743137459849,-500.0,0.00036164,17]
[356765220,1743137459858,-500.0,0.00036164,17]
[356765222,1743137459870,-500.0,0.00036164,17]
[356765224,1743137459884,-500.0,0.00036164,17]
[356765244,1743137460078,-500.0,0.00036164,17]
[356765245,1743137460088,-500.0,0.00036164,2]
[356765246,1743137460098,-573.48,0.00036164,17]
[356765247,1743137460107,-500.0,0.00036164,17]
[356765248,1743137460118,-1333.44,0.00036164,17]
[356765249,1743137460127,-500.0,0.00036164,17]
[356765250,1743137460137,-2536.53,0.00036164,17]
[356765251,1743137460147,-500.0,0.00036164,17]
[356765252,1743137460156,-1619.54,0.00036164,17]
[356765253,1743137460166,-1432.11,0.00036164,17]
[356765255,1743137460176,-500.0,0.00036164,17]
[356765257,1743137460185,-500.0,0.00036164,17]
[356765259,1743137460195,-500.0,0.00036164,17]
[356765261,1743137460204,-500.0,0.00036164,17]
[356765263,1743137460214,-500.0,0.00036164,17]
[356765265,1743137460224,-500.0,0.00036164,17]
[356765267,1743137460234,-500.0,0.00036164,17]
[356765269,1743137460244,-1650.23,0.00036164,17]
[356765271,1743137460253,-500.0,0.00036164,17]
[356765273,1743137460262,-767.88,0.00036164,17]
[356765274,1743137460271,-500.0,0.00036164,17]
[356765277,1743137460281,-500.0,0.00036164,17]
[356765278,1743137460290,-500.0,0.00036164,17]
[356765280,1743137460299,-500.0,0.00036164,17]
[356765283,1743137460309,-500.0,0.00036164,17]
[356765284,1743137460318,-3720.92,0.00036164,17]
[356765286,1743137460327,-500.0,0.00036164,17]
[356765289,1743137460337,-708.88,0.00036164,17]
[356765291,1743137460346,-1385.56,0.00036164,17]
[356765293,1743137460355,-500.0,0.00036164,17]
[356765295,1743137460365,-630.2,0.00036164,17]
[356765297,1743137460375,-3899.38,0.00036164,17]
[356765299,1743137460384,-500.0,0.00036164,17]
[356765301,1743137460393,-530.34,0.00036164,17]
[356765303,1743137460403,-500.0,0.00036164,17]
[356765305,1743137460412,-500.0,0.00036164,17]
[356765307,1743137460422,-1595.74,0.00036164,17]
[356765309,1743137460432,-500.0,0.00036164,17]
[356765311,1743137460441,-1000.0,0.00036164,17]
[356765313,1743137460451,-1402.83,0.00036164,17]
[356765315,1743137460460,-500.0,0.00036164,17]
[356765317,1743137460470,-2114.39,0.00036164,17]
[356765319,1743137460479,-500.0,0.00036164,17]
[356765321,1743137460489,-500.0,0.00036164,17]
[356765323,1743137460498,-901.96,0.00036164,17]
[356765325,1743137460507,-500.0,0.00036164,17]
[356765327,1743137460516,-500.0,0.00036164,17]
[356765329,1743137460526,-500.0,0.00036164,17]
[356765331,1743137460535,-500.0,0.00036164,17]
[356765333,1743137460544,-500.0,0.00036164,17]
[356765335,1743137460553,-626.94,0.00036164,17]
[356765337,1743137460562,-2137.05,0.00036164,17]
[356765339,1743137460571,-500.0,0.00036164,17]
[356765341,1743137460581,-529.04846763,0.00036164,17]
[356765343,1743137460590,-500.0,0.00036164,17]
[356765345,1743137460599,-803.29,0.00036164,17]
[356765347,1743137460609,-500.0,0.00036164,17]
[356765349,1743137460619,-1048.78,0.00036164,17]
[356765351,1743137460628,-500.0,0.00036164,17]
[356765353,1743137460637,-2008.16,0.00036164,17]
[356765355,1743137460646,-1482.65,0.00036164,17]
[356765357,1743137460656,-500.0,0.00036164,17]
[356765359,1743137460664,-500.0,0.00036164,17]
[356765361,1743137460674,-300.0,0.00036164,30]
[356765362,1743137460683,-4026.6,0.00036164,17]
[356765364,1743137460692,-500.0,0.00036164,17]
[356765365,1743137460701,-500.0,0.00036164,17]
[356765367,1743137460711,-500.0,0.00036164,17]
[356765369,1743137460720,-500.0,0.00036164,17]
[356765371,1743137460730,-500.0,0.00036164,17]
[356765373,1743137460739,-500.0,0.00036164,17]
[356765375,1743137460748,-688.03,0.00036164,17]
[356765377,1743137460757,-500.0,0.00036164,17]
[356765379,1743137460767,-500.0,0.00036164,17]
[356765381,1743137460776,-500.0,0.00036164,17]
[356765383,1743137460785,-3356.94,0.00036164,17]
[356765385,1743137460794,-997.16,0.00036164,17]
[356765387,1743137460803,-500.0,0.00036164,17]
[356765389,1743137460812,-923.12,0.00036164,17]
[356765391,1743137460821,-812.1,0.00036164,17]
[356765392,1743137460831,-500.0,0.00036164,2]
[356765395,1743137460840,-862.65,0.00036164,17]
[356765396,1743137460849,-500.0,0.00036164,17]
[356765399,1743137460859,-500.0,0.00036164,17]
[356765400,1743137460870,-711.74,0.00036164,17]
[356765402,1743137460882,-500.0,0.00036164,17]
[356765404,1743137460891,-1235.25,0.00036164,17]
[356765406,1743137460902,-1301.09,0.00036164,17]
[356765408,1743137460911,-607.27944518,0.00036164,17]
[356765410,1743137460920,-1889.72,0.00036164,17]
[356765412,1743137460929,-500.0,0.00036164,17]
[356765414,1743137460939,-2096.33,0.00036164,17]
[356765416,1743137460948,-605.11134546,0.00036164,17]
[356765418,1743137460959,-744.22,0.00036164,17]
[356765420,1743137460969,-500.0,0.00036164,17]
[356765421,1743137460978,-621.66,0.00036164,17]
[356765423,1743137460987,-663.78,0.00036164,17]
[356765425,1743137460996,-679.11,0.00036164,17]
[356765427,1743137461006,-605.69,0.00036164,17]
[356765429,1743137461015,-227.46223692,0.00036164,17]
[356765431,1743137461025,-500.0,0.00036164,17]
[356765433,1743137461035,-2009.16,0.00036164,17]
[356765435,1743137461044,-500.0,0.00036164,17]
[356765437,1743137461054,-4198.09,0.00036164,17]
[356765440,1743137461063,-178.19737501,0.00036164,17]
[356765441,1743137461073,-500.0,0.00036164,17]
[356765443,1743137461083,-500.0,0.00036164,17]
[356765445,1743137461092,-500.0,0.00036164,17]
[356765447,1743137461102,-476.03499913,0.00036164,17]
[356765449,1743137461112,-500.0,0.00036164,17]
[356765451,1743137461123,-500.0,0.00036164,17]
[356765453,1743137461132,-2166.21,0.00036164,17]
[356765455,1743137461142,-500.0,0.00036164,17]
[356765457,1743137461151,-588.46525582,0.00036164,17]
[356765459,1743137461160,-500.0,0.00036164,17]
[356765461,1743137461170,-500.0,0.00036164,14]
[356765463,1743137461179,-1799.85,0.00036164,17]
[356765465,1743137461189,-588.79,0.00036164,17]
[356765467,1743137461199,-1048.65,0.00036164,17]
[356765469,1743137461208,-500.0,0.00036164,17]
[356765471,1743137461217,-827.17,0.00036164,17]
[356765473,1743137461227,-500.0,0.00036164,17]
[356765475,1743137461237,-605.17,0.00036164,17]
[356765477,1743137461247,-500.0,0.00036164,17]
[356765479,1743137461257,-1860.77,0.00036164,17]
[356765481,1743137461267,-500.0,0.00036164,17]
[356765483,1743137461277,-500.0,0.00036164,17]
[356765485,1743137461286,-1096.06,0.00036164,17]
[356765487,1743137461295,-500.0,0.00036164,17]
[356765489,1743137461305,-500.0,0.00036164,17]
[356765491,1743137461314,-500.0,0.00036164,2]
[356765493,1743137461323,-1691.27,0.00036164,17]
[356765495,1743137461333,-1228.52,0.00036164,17]
[356765497,1743137461342,-619.69,0.00036164,17]
[356765499,1743137461352,-602.75,0.00036164,17]
[356765501,1743137461361,-500.0,0.00036164,17]
[356765503,1743137461373,-1740.21,0.00036164,17]
[356765505,1743137461382,-861.19,0.00036164,17]
[356765507,1743137461392,-500.0,0.00036164,17]
[356765509,1743137461401,-500.0,0.00036164,17]
[356765511,1743137461412,-500.0,0.00036164,17]
[356765514,1743137461427,-500.0,0.00036164,17]
[356765516,1743137461442,-500.0,0.00036164,17]
[356765519,1743137461456,-702.95,0.00036164,17]
[356765521,1743137461467,-1926.83,0.00036164,17]
[356765523,1743137461483,-500.0,0.00036164,17]
[356765526,1743137461495,-1323.18,0.00036164,17]
[356765528,1743137461510,-354.47732829,0.00036164,17]
[356765531,1743137461524,-500.0,0.00036164,17]
[356765533,1743137461537,-536.87345955,0.00036164,17]
[356765536,1743137461553,-626.16,0.00036164,17]
[356765538,1743137461565,-1840.96,0.00036164,17]
[356765541,1743137461578,-500.0,0.00036164,17]
[356765543,1743137461591,-975.59,0.00036164,17]
[356765546,1743137461603,-157.44510045,0.00036164,17]
[356765548,1743137461619,-1037.21,0.00036164,17]
[356765550,1743137461632,-982.81,0.00036164,17]
[356765552,1743137461642,-1000.0,0.00036164,17]
[356765555,1743137461653,-500.0,0.00036164,17]
[356765557,1743137461665,-500.0,0.00036164,17]
[356765559,1743137461678,-500.0,0.00036164,17]
[356765562,1743137461692,-500.0,0.00036164,17]
[356765564,1743137461705,-500.0,0.00036164,17]
[356765567,1743137461719,-500.0,0.00036164,17]
[356765569,1743137461733,-500.0,0.00036164,17]
[356765572,1743137461748,-580.56,0.00036164,17]
[356765574,1743137461759,-626.79,0.00036164,17]
[356765576,1743137461769,-500.0,0.00036164,17]
[356765578,1743137461780,-500.0,0.00036164,17]
[356765581,1743137461794,-651.99,0.00036164,17]
[356765583,1743137461809,-842.71,0.00036164,17]
[356765586,1743137461820,-500.0,0.00036164,17]
[356765588,1743137461832,-500.0,0.00036164,17]
[356765590,1743137461843,-500.0,0.00036164,17]
[356765593,1743137461857,-500.7,0.00036164,17]
[356765595,1743137461870,-1145.58,0.00036164,17]
[356765597,1743137461884,-500.0,0.00036164,17]
[356765599,1743137461896,-500.0,0.00036164,17]
[356765602,1743137461907,-740.35,0.00036164,17]
[356765604,1743137461922,-500.0,0.00036164,17]
[356765606,1743137461935,-500.0,0.00036164,17]
[356765609,1743137461947,-500.0,0.00036164,17]
[356765611,1743137461962,-591.69,0.00036164,17]
[356765613,1743137461975,-4085.66,0.00036164,17]
[356765615,1743137461986,-500.0,0.00036164,17]
[356765618,1743137461997,-1439.95,0.00036164,17]
[356765620,1743137462011,-500.0,0.00036164,17]
[356765622,1743137462023,-2460.2,0.00036164,17]
[356765625,1743137462035,-500.0,0.00036164,17]
[356765627,1743137462047,-754.98,0.00036164,17]
[356765629,1743137462059,-308.6,0.00036164,7]
[356765632,1743137462071,-826.56,0.00036164,17]
[356765634,1743137462082,-500.0,0.00036164,17]
[356765636,1743137462094,-500.0,0.00036164,17]
[356765638,1743137462106,-500.0,0.00036164,17]
[356765641,1743137462119,-500.0,0.00036164,17]
[356765643,1743137462132,-500.0,0.00036164,17]
[356765645,1743137462144,-3479.41,0.00036164,17]
[356765647,1743137462156,-500.0,0.00036164,17]
[356765650,1743137462168,-521.49,0.00036164,17]
[356765652,1743137462179,-500.0,0.00036164,17]
[356765654,1743137462191,-553.56,0.00036164,17]
[356765656,1743137462202,-1364.9,0.00036164,17]
[356765659,1743137462214,-706.84,0.00036164,17]
[356765661,1743137462225,-500.0,0.00036164,17]
[356765663,1743137462237,-507.67,0.00036164,17]
[356765665,1743137462248,-500.0,0.00036164,17]
[356765668,1743137462260,-6636.89,0.00036164,17]
[356765670,1743137462272,-2915.13,0.00036164,17]
[356765672,1743137462285,-841.64,0.00036164,17]
[356765675,1743137462297,-500.0,0.00036164,17]
[356765677,1743137462308,-7189.6851392,0.00036164,7]
[356765685,1743137462381,-2408.109752,0.00036164,7]
[356765834,1743137463959,-14046.70366,0.00036164,7]
[356765941,1743137764025,218.92,0.00014,30]
[356765942,1743138619708,448.0,0.00025,120]
[356765971,1743138632510,-200.0,0.00026941,2]
[356765972,1743138632520,-280.0,0.00027033,2]
[356765973,1743138632530,-489.1094073,0.00027441,2]
[356765974,1743138632539,-248.82486084,0.00027823,2]
[356765975,1743138632619,-51.38225396,0.00027823,2]
[356765976,1743138632628,-3000.0,0.00028,2]
[356765977,1743138632638,-300.0,0.00028009,2]
[356765978,1743138632647,-3000.0,0.0002801,2]
[356765979,1743138632656,-3000.0,0.0002802,2]
[356765980,1743138632666,-3000.0,0.0002803,2]
[356765981,1743138632675,-168.88,0.0002803,2]
[356765982,1743138632685,-3000.0,0.0002804,2]
[356765983,1743138632694,-4951.017581,0.0002805,2]
[356765984,1743138632703,-6962.80546614,0.00028899,2]
[356765985,1743138632715,-8638.68399271,0.00028899,2]
[356766186,1743138638439,-34398.51054115,0.00028899,2]
[356766188,1743138638449,-500.0,0.00028899,2]
[356766190,1743138638459,-500.0,0.00028899,2]
[356766192,1743138638469,-500.0,0.00028899,2]